bitfinex/quotes_SOLUSD_20250619
["timestamp","ask_amount","ask_price","bid_price","bid_amount"]
[1750316787520,26.0,145.53,145.51,32.22394837]
[1750316789220,16.30331871,145.56,145.51,32.22394837]
[1750316789417,34.17061871,145.56,145.51,32.22394837]
[1750316789919,26.0,145.56,145.53,8.17061871]
[1750316790133,26.76344886,145.6,145.55,8.17061871]
[1750316790134,8.17061871,145.59,145.55,8.17061871]
[1750316790339,26.0,145.56,145.55,8.17061871]
[1750316790534,21.39936478,145.6,145.55,8.17061871]
[1750316790735,19.12556478,145.61,145.56,32.21568603]
[1750316791044,34.17061871,145.61,145.57,8.17061871]
[1750316791347,8.17061871,145.61,145.57,8.17061871]
[1750316791558,26.0,145.6,145.57,8.17061871]
[1750316792739,26.0,145.6,145.58,6.86907542]
[1750316799754,26.0,145.59,145.58,15.03969413]
[1750316800346,26.0,145.59,145.57,8.17061871]
[1750316801369,8.17061871,145.62,145.58,15.03969413]
[1750316801753,8.17061871,145.62,145.58,32.21238268]
[1750316801958,26.0,145.61,145.58,32.21238268]
[1750316802270,26.0,145.61,145.6,8.17061871]
[1750316803153,8.17061871,145.64,145.6,8.17061871]
[1750316803349,34.17061871,145.64,145.61,6.86766018]
[1750316803563,26.0,145.62,145.61,6.86766018]
[1750316804355,5.84,145.66,145.61,15.03827889]
[1750316804356,26.0,145.63,145.61,15.03827889]
[1750316805161,26.0,145.62,145.61,15.03827889]
[1750316805967,26.0,145.63,145.61,6.86766018]
[1750316806774,8.17061871,145.62,145.59,6.86860361]
[1750316806981,26.0,145.63,145.59,6.86860361]
[1750316807175,8.17061871,145.61,145.59,6.86860361]
[1750316807767,8.17061871,145.62,145.58,15.03969413]
[1750316808473,8.17061871,145.62,145.58,6.86907542]
[1750316809182,26.0,145.61,145.58,6.86907542]
[1750316809487,34.17061871,145.61,145.58,6.86907542]
[1750316810657,26.0,145.61,145.58,6.86907542]
[1750316810857,34.17061871,145.61,145.58,6.86907542]
[1750316812889,26.0,145.61,145.58,6.86907542]
[1750316813462,34.17061871,145.61,145.58,6.86907542]
[1750316815393,26.0,145.61,145.58,6.86907542]
[1750316815594,34.17061871,145.61,145.58,6.86907542]
[1750316819099,26.0,145.61,145.58,6.86907542]
[1750316819299,34.17061871,145.61,145.58,6.86907542]
[1750316820194,34.17061871,145.61,145.57,6.86954729]
[1750316820402,34.17061871,145.61,145.57,15.040166]
[1750316820700,34.17061871,145.61,145.57,6.86954729]
[1750316822299,26.0,145.59,145.57,6.86954729]
[1750316823202,34.17061871,145.6,145.57,6.86954729]
[1750316823591,26.0,145.6,145.57,32.21403424]
[1750316823788,8.17061871,145.65,145.59,8.17061871]
[1750316823988,13.27933733,145.65,145.61,8.17061871]
[1750316824189,26.0,145.62,145.61,15.03827889]
[1750316824505,26.0,145.62,145.61,6.86766018]
[1750316825603,26.0,145.63,145.61,6.86766018]
[1750316825804,26.0,145.63,145.61,15.03827889]
[1750316826307,16.19431871,145.67,145.62,8.17061871]
[1750316826606,26.0,145.64,145.62,8.17061871]
[1750316827805,26.0,145.64,145.63,6.86671702]
[1750316828690,5.11820077,145.66,145.63,6.86671702]
[1750316828918,5.11820077,145.65,145.63,6.86671702]
[1750316829082,34.17061871,145.67,145.63,6.86671702]
[1750316829286,5.11828532,145.66,145.63,6.86671702]
[1750316829487,5.11828532,145.65,145.63,6.86671702]
[1750316829708,34.17061871,145.67,145.63,6.86671702]
[1750316829889,13.29233975,145.66,145.63,6.86671702]
[1750316830091,5.12172104,145.65,145.63,6.86671702]
[1750316830411,8.17061871,145.66,145.63,6.86671702]
[1750316830718,5.123867,145.65,145.63,6.86671702]
[1750316830895,8.17061871,145.66,145.63,6.86671702]
[1750316831099,5.123867,145.65,145.63,6.86671702]
[1750316831410,5.12600929,145.64,145.63,6.86671702]
[1750316831611,8.17061871,145.66,145.63,6.86671702]
[1750316831807,5.12599926,145.65,145.63,6.86671702]
[1750316832007,8.17061871,145.66,145.63,6.86671702]
[1750316832313,5.12561199,145.65,145.63,6.86671702]
[1750316832610,5.12561199,145.64,145.63,6.86671702]
[1750316833980,5.12561199,145.64,145.62,17.166805]
[1750316833981,13.2962307,145.64,145.59,88.2]
[1750316834206,13.30070472,145.63,145.58,15.03969413]
[1750316834511,5.13008601,145.62,145.58,32.21238268]
[1750316834717,8.17061871,145.63,145.58,32.21238268]
[1750316835011,5.13308113,145.62,145.58,32.21238268]
[1750316835217,34.17061871,145.63,145.59,8.17061871]
[1750316835424,26.0,145.63,145.61,6.86766018]
[1750316835795,26.0,145.66,145.62,8.17061871]
[1750316836109,5.13384904,145.65,145.62,8.17061871]
[1750316836302,5.13384904,145.64,145.62,8.17061871]
[1750316836510,26.0,145.66,145.63,8.17061871]
[1750316837520,26.0,145.66,145.64,6.86624553]
[1750316839326,8.17061871,145.68,145.64,32.20247808]
[1750316840016,26.0,145.69,145.64,32.20247808]
[1750316840211,13.29935758,145.68,145.64,32.20247808]
[1750316840413,34.17061871,145.69,145.65,8.17061871]
[1750316840618,26.0,145.69,145.65,8.17061871]
[1750316841337,26.0,145.69,145.66,24.02855964]
[1750316842599,8.17061871,145.69,145.66,24.02855964]
[1750316844819,8.17061871,145.67,145.66,6.86530275]
[1750316845019,8.17061871,145.68,145.66,6.86530275]
[1750316845523,13.29390513,145.68,145.66,6.86530275]
[1750316845726,13.29390513,145.68,145.63,25.33663727]
[1750316845727,5.12328642,145.68,145.64,6.86624553]
[1750316845909,8.17061871,145.67,145.64,6.86624553]
[1750316846109,8.17061871,145.67,145.63,25.33663727]
[1750316847122,8.17061871,145.67,145.63,32.20335429]
[1750316850814,8.17061871,145.66,145.63,24.03273558]
[1750316851012,8.17061871,145.65,145.63,6.86671702]
[1750316851537,8.17061871,145.65,145.62,6.86718857]
[1750316851538,8.17061871,145.64,145.62,6.86718857]
[1750316852235,26.0,145.64,145.62,24.03516]
[1750316852933,26.0,145.64,145.62,32.20577871]
[1750316853539,34.17061871,145.66,145.62,32.20577871]
[1750316854223,34.17061871,145.66,145.62,24.03516]
[1750316855133,39.29291172,145.66,145.62,24.03516]
[1750316855436,34.17061871,145.66,145.62,32.20577871]
[1750316855915,26.0,145.66,145.62,32.20577871]
[1750316856117,34.17061871,145.66,145.62,32.20577871]
[1750316857329,26.0,145.66,145.62,32.20577871]
[1750316857528,8.17061871,145.7,145.62,58.37110286]
[1750316857730,13.29378243,145.69,145.65,8.17061871]
[1750316857931,8.17061871,145.69,145.65,8.17061871]
[1750316858126,8.17061871,145.69,145.62,58.37110286]
[1750316858328,8.17061871,145.69,145.64,8.17061871]
[1750316858839,8.17061871,145.69,145.65,32.20082811]
[1750316860455,26.0,145.7,145.67,8.17061871]
[1750316860621,26.0,145.7,145.68,6.86436024]
[1750316861237,26.0,145.71,145.68,32.19587955]
[1750316861540,8.17061871,145.74,145.69,8.17061871]
[1750316861730,5.12272493,145.73,145.69,8.17061871]
[1750316862234,26.0,145.74,145.7,8.17061871]
[1750316862441,26.0,145.71,145.68,24.02526084]
[1750316864641,34.17061871,145.71,145.68,24.02526084]
[1750316871140,26.0,145.71,145.68,24.02526084]
[1750316871445,26.0,145.71,145.68,32.19587955]
[1750316871816,26.0,145.71,145.68,24.02526084]
[1750316872035,26.0,145.71,145.68,32.19587955]
[1750316874329,34.17061871,145.73,145.7,24.02196293]
[1750316875638,8.17061871,145.71,145.7,6.86341798]
[1750316876256,26.0,145.69,145.68,6.86436024]
[1750316876749,34.17061871,145.69,145.68,6.86436024]
[1750316877948,34.17061871,145.69,145.64,113.53515814]
[1750316877949,34.17061871,145.69,145.65,6.86577411]
[1750316878261,8.17061871,145.67,145.65,6.86577411]
[1750316878444,8.17061871,145.67,145.64,17.16453943]
[1750316880933,13.27746685,145.71,145.62,32.20577871]
[1750316880934,8.17061871,145.66,145.62,32.20577871]
[1750316881733,8.17061871,145.66,145.62,24.03516]
[1750316881941,8.17061871,145.65,145.62,24.03516]
[1750316882137,8.17061871,145.64,145.62,24.03516]
[1750316882555,8.17061871,145.64,145.62,6.86718857]
[1750316883054,26.0,145.62,145.61,6.86766018]
[1750316883272,39.29913512,145.62,145.61,6.86766018]
[1750316883432,34.17061871,145.62,145.58,6.86907542]
[1750316883756,34.17061871,145.61,145.58,6.86907542]
[1750316884752,8.17061871,145.62,145.58,8.17061871]
[1750316885057,34.17061871,145.63,145.58,8.17061871]
[1750316885741,34.17061871,145.63,145.59,24.04011264]
[1750316886559,26.0,145.63,145.6,8.17061871]
[1750316886762,8.17061871,145.65,145.61,8.17061871]
[1750316887058,34.17061871,145.65,145.61,8.17061871]
[1750316887762,26.0,145.65,145.61,8.17061871]
[1750316887965,26.0,145.65,145.62,24.03516]
[1750316888551,34.17061871,145.65,145.62,24.03516]
[1750316892343,26.0,145.65,145.62,32.20577871]
[1750316892567,26.0,145.67,145.63,8.17061871]
[1750316894068,26.0,145.67,145.64,6.86624553]
[1750316894445,26.0,145.67,145.64,15.03686424]
[1750316894645,26.0,145.67,145.64,32.20247808]
[1750316896271,26.0,145.67,145.63,8.17061871]
[1750316897149,26.0,145.67,145.61,24.03681065]
[1750316897350,34.17061871,145.67,145.63,8.17061871]
[1750316898359,34.17061871,145.67,145.64,6.86624553]
[1750316899045,26.0,145.67,145.64,6.86624553]
[1750316899745,26.0,145.67,145.64,24.03185937]
[1750316900177,34.17061871,145.67,145.64,24.03185937]
[1750316905192,34.17061871,145.67,145.62,8.17061871]
[1750316906362,34.17061871,145.67,145.63,24.03350957]
[1750316907271,26.0,145.67,145.61,24.03681065]
[1750316907472,26.0,145.67,145.63,8.17061871]
[1750316908389,26.0,145.67,145.64,24.03185937]
[1750316910094,34.17061871,145.67,145.64,24.03185937]
[1750316912301,26.0,145.67,145.64,24.03185937]
[1750316917698,26.0,145.67,145.64,8.17061871]
[1750316918973,26.0,145.67,145.62,18.64964886]
[1750316919172,26.0,145.67,145.63,8.17061871]
[1750316919481,26.0,145.67,145.64,8.17061871]
[1750316919679,26.0,145.67,145.65,6.86577411]
[1750316920902,34.17061871,145.67,145.65,6.86577411]
[1750316921110,26.0,145.64,145.62,6.86718857]
[1750316921769,34.17061871,145.64,145.61,6.86766018]
[1750316922003,13.30762972,145.63,145.61,6.86766018]
[1750316922213,8.17061871,145.63,145.61,6.86766018]
[1750316922894,26.0,145.63,145.61,6.86766018]
[1750316923069,26.0,145.61,145.58,17.17268555]
[1750316923271,8.17061871,145.61,145.58,17.17268555]
[1750316923903,8.17061871,145.61,145.58,24.04176097]
[1750316925699,26.0,145.62,145.58,24.04176097]
[1750316925902,34.17061871,145.62,145.58,24.04176097]
[1750316926402,5.13431959,145.61,145.58,24.04176097]
[1750316926601,34.17061871,145.62,145.58,24.04176097]
[1750316926899,5.13423458,145.61,145.58,24.04176097]
[1750316927096,34.17061871,145.62,145.58,24.04176097]
[1750316927286,5.13423458,145.61,145.58,24.04176097]
[1750316927487,34.17061871,145.62,145.58,24.04176097]
[1750316928801,8.17061871,145.6,145.56,32.21568603]
[1750316929096,8.17061871,145.58,145.56,6.87001923]
[1750316929800,8.17061871,145.57,145.56,6.87001923]
[1750316930782,8.17061871,145.57,145.54,24.04830492]
[1750316931006,26.0,145.59,145.54,24.04830492]
[1750316931217,26.0,145.56,145.54,32.21892363]
[1750316931703,26.0,145.56,145.54,24.04830492]
[1750316932006,26.0,145.56,145.54,32.21892363]
[1750316937311,26.0,145.56,145.54,24.04830492]
[1750316937775,26.0,145.56,145.54,32.21892363]
[1750316938213,26.0,145.56,145.54,24.04830492]
[1750316938709,26.0,145.56,145.54,32.21892363]
[1750316939204,26.0,145.56,145.54,24.04830492]
[1750316941223,26.0,145.56,145.54,32.21892363]
[1750316941592,26.0,145.56,145.54,24.04830492]
[1750316941890,26.0,145.56,145.54,32.21892363]
[1750316942596,26.0,145.56,145.53,8.17061871]
[1750316943192,8.17061871,145.58,145.54,8.17061871]
[1750316943193,26.0,145.58,145.54,8.17061871]
[1750316943909,34.17061871,145.58,145.54,8.17061871]
[1750316944116,26.0,145.57,145.54,8.17061871]
[1750316944913,26.0,145.57,145.55,6.87049124]
[1750316946219,26.0,145.57,145.54,6.8709633]
[1750316946717,8.17061871,145.56,145.54,6.8709633]
[1750316947929,26.0,145.56,145.54,6.8709633]
[1750316948097,26.0,145.53,145.51,6.8723799]
[1750316948302,8.17061871,145.52,145.51,6.8723799]
[1750316950490,8.17061871,145.53,145.51,6.8723799]
[1750316952119,8.17061871,145.52,145.51,6.8723799]
[1750316952699,34.17061871,145.52,145.51,6.8723799]
[1750316953824,34.17061871,145.52,145.48,6.87379708]
[1750316954014,8.17061871,145.51,145.48,6.87379708]
[1750316954527,8.17061871,145.51,145.47,6.8742696]
[1750316954707,26.0,145.52,145.47,6.8742696]
[1750316954708,8.17061871,145.5,145.47,6.8742696]
[1750316954901,8.17061871,145.51,145.47,6.8742696]
[1750316955900,8.17061871,145.51,145.47,32.23056233]
[1750316956537,34.17061871,145.52,145.47,32.23056233]
[1750316956917,8.17061871,145.55,145.5,8.17061871]
[1750316957224,34.17061871,145.54,145.5,8.17061871]
[1750316958121,34.17061871,145.54,145.51,6.8723799]
[1750316958942,34.17061871,145.54,145.51,24.05332966]
[1750316965947,26.0,145.53,145.51,24.05332966]
[1750316966146,5.11982682,145.56,145.52,8.17061871]
[1750316966443,26.0,145.55,145.54,6.8709633]
[1750316967043,26.0,145.58,145.54,24.04837157]
[1750316967338,8.17061871,145.59,145.54,32.21899028]
[1750316967527,26.0,145.57,145.55,8.17061871]
[1750316967730,5.12107251,145.58,145.56,8.17061871]
[1750316968618,5.12107251,145.58,145.57,6.86954729]
[1750316968825,34.17061871,145.6,145.57,6.86954729]
[1750316969240,26.0,145.6,145.57,6.86954729]
[1750316970923,5.12366061,145.59,145.57,6.86954729]
[1750316971354,26.0,145.6,145.57,32.21403424]
[1750316974547,26.0,145.6,145.58,8.17061871]
[1750316974752,26.0,145.6,145.59,6.86860361]
[1750316975163,26.0,145.6,145.59,15.03922232]
[1750316977931,26.0,145.6,145.59,6.86860361]
[1750316981664,5.12321562,145.62,145.59,32.21073135]
[1750316981949,5.12321562,145.63,145.59,32.21073135]
[1750316982162,26.0,145.62,145.59,32.21073135]
[1750316982331,26.0,145.61,145.59,32.21073135]
[1750316982532,13.28944558,145.64,145.6,8.17061871]
[1750316982850,26.0,145.63,145.6,8.17061871]
[1750316983828,26.0,145.62,145.61,6.86766018]
[1750316984535,8.17061871,145.64,145.61,6.86766018]
[1750316985927,20.89925681,145.65,145.61,24.03681065]
[1750316986249,15.78201871,145.65,145.61,24.03681065]
[1750316986822,8.17061871,145.65,145.61,24.03681065]
[1750316987253,26.0,145.62,145.61,24.03681065]
[1750316990744,26.0,145.62,145.61,8.17061871]
[1750316991139,8.17061871,145.65,145.61,8.17061871]
[1750316991336,26.0,145.64,145.61,8.17061871]
[1750316992853,26.0,145.63,145.62,6.86718857]
[1750316997563,26.0,145.63,145.6,8.17061871]
[1750316998442,26.0,145.63,145.61,6.86766018]
[1750317000400,8.17061871,145.62,145.58,6.86907542]
[1750317000563,8.17061871,145.62,145.58,15.03969413]
[1750317000767,34.17061871,145.62,145.58,15.03969413]
[1750317001065,31.2342123,145.62,145.58,12.10328772]
[1750317001385,26.0,145.62,145.58,29.27597627]
[1750317001569,26.0,145.62,145.6,5.2342123]
[1750317002659,26.0,145.62,145.61,6.86766018]
[1750317003871,26.0,145.63,145.61,15.0434494]
[1750317004468,26.0,145.63,145.61,6.86766018]
[1750317006770,8.17578922,145.63,145.61,6.86766018]
[1750317007269,34.17578922,145.64,145.61,6.86766018]
[1750317008176,34.17578922,145.64,145.6,24.03749267]
[1750317009477,5.13621968,145.63,145.6,24.03749267]
[1750317009795,34.17578922,145.64,145.6,24.03749267]
[1750317010091,5.13643884,145.63,145.6,24.03749267]
[1750317010295,26.0,145.64,145.6,24.03749267]
[1750317010483,5.13643884,145.63,145.6,24.03749267]
[1750317010685,34.17578922,145.64,145.6,24.03749267]
[1750317010883,5.13665013,145.63,145.6,24.03749267]
[1750317011081,34.17578922,145.64,145.6,24.03749267]
[1750317011281,5.13665013,145.63,145.6,24.03749267]
[1750317011604,34.17578922,145.64,145.6,24.03749267]
[1750317011776,5.13685428,145.63,145.6,24.03749267]
[1750317011976,34.17578922,145.64,145.6,24.03749267]
[1750317012279,5.13685428,145.63,145.6,24.03749267]
[1750317012606,34.17578922,145.64,145.6,24.03749267]
[1750317012906,5.13705113,145.63,145.6,24.03749267]
[1750317013090,34.17578922,145.64,145.6,24.03749267]
[1750317013404,5.1370209,145.63,145.6,24.03749267]
[1750317013604,34.17578922,145.64,145.6,24.03749267]
[1750317013797,5.13720491,145.63,145.6,24.03749267]
[1750317014091,34.17578922,145.64,145.6,24.03749267]
[1750317014304,5.13723513,145.63,145.6,24.03749267]
[1750317014472,34.17578922,145.64,145.6,24.03749267]
[1750317014678,5.13741999,145.63,145.6,24.03749267]
[1750317014895,34.17578922,145.64,145.6,24.03749267]
[1750317015091,5.1373891,145.63,145.6,24.03749267]
[1750317015417,34.17578922,145.64,145.6,24.03749267]
[1750317015594,5.13756184,145.63,145.6,32.21328189]
[1750317015795,34.17578922,145.64,145.6,32.21328189]
[1750317016023,5.13756184,145.63,145.6,32.21328189]
[1750317016197,34.17578922,145.64,145.6,32.21328189]
[1750317016498,5.13759207,145.63,145.6,32.21328189]
[1750317016820,34.17578922,145.64,145.6,32.21328189]
[1750317017021,5.13777429,145.63,145.6,32.21328189]
[1750317017330,34.17578922,145.64,145.6,32.21328189]
[1750317017495,5.13864792,145.63,145.6,32.21328189]
[1750317017697,34.17578922,145.64,145.6,32.21328189]
[1750317017897,5.138546,145.63,145.6,32.21328189]
[1750317018123,34.17578922,145.64,145.6,32.21328189]
[1750317018293,5.13854935,145.63,145.6,32.21328189]
[1750317018493,34.17578922,145.64,145.6,32.21328189]
[1750317018710,5.13952804,145.63,145.6,24.03749267]
[1750317018916,5.13952804,145.62,145.6,24.03749267]
[1750317019152,34.17578922,145.64,145.6,24.03749267]
[1750317019312,5.1396125,145.63,145.6,24.03749267]
[1750317019497,5.1396125,145.62,145.6,24.03749267]
[1750317019690,34.17578922,145.64,145.6,24.03749267]
[1750317019897,5.14071799,145.63,145.6,24.03749267]
[1750317020203,6.40769983,145.68,145.62,8.17578922]
[1750317020403,5.14005511,145.67,145.63,8.17578922]
[1750317020621,31.14005511,145.66,145.64,8.17578922]
[1750317020797,5.14005511,145.65,145.64,8.17578922]
[1750317021412,26.0,145.66,145.64,8.17578922]
[1750317022417,26.0,145.66,145.65,6.86577411]
[1750317022620,31.13944299,145.66,145.65,6.86577411]
[1750317032830,26.0,145.69,145.65,32.20599862]
[1750317033010,8.17578922,145.74,145.65,32.20599862]
[1750317033011,5.1360266,145.68,145.65,25.5801094]
[1750317033214,6.42430373,145.73,145.67,8.17578922]
[1750317033433,31.13554077,145.72,145.7,8.17578922]
[1750317033604,5.13554077,145.71,145.7,8.17578922]
[1750317034026,5.13554077,145.71,145.7,15.0392072]
[1750317034441,26.0,145.73,145.7,32.19775215]
[1750317034642,5.12947403,145.72,145.7,32.19775215]
[1750317034938,8.17578922,145.74,145.7,32.19775215]
[1750317035126,31.12947337,145.73,145.7,32.19775215]
[1750317035329,5.12947337,145.72,145.7,32.19775215]
[1750317035544,8.17578922,145.74,145.7,32.19775215]
[1750317035707,31.12639234,145.73,145.7,32.19775215]
[1750317035912,26.0,145.73,145.7,8.17578922]
[1750317037008,31.12364127,145.73,145.7,8.17578922]
[1750317037402,26.0,145.73,145.7,8.17578922]
[1750317038115,34.17578922,145.73,145.71,6.86294694]
[1750317038920,39.29565184,145.73,145.71,6.86294694]
[1750317039243,26.0,145.71,145.7,6.86341798]
[1750317042737,8.17578922,145.71,145.67,25.33786789]
[1750317042913,26.0,145.7,145.67,17.16207867]
[1750317043118,26.0,145.69,145.67,17.16207867]
[1750317044644,8.17578922,145.71,145.67,17.16207867]
[1750317045747,8.17578922,145.71,145.67,24.02691013]
[1750317047548,26.0,145.69,145.67,6.86483146]
[1750317047733,8.17578922,145.7,145.67,6.86483146]
[1750317047927,8.17578922,145.69,145.67,6.86483146]
[1750317048350,31.11838068,145.71,145.67,6.86483146]
[1750317048535,8.17578922,145.69,145.67,6.86483146]
[1750317050157,8.17578922,145.69,145.65,8.17578922]
[1750317050158,8.17578922,145.69,145.66,6.86530275]
[1750317052931,5.22878272,145.7,145.66,12.09408547]
[1750317054163,5.22878272,145.7,145.66,29.25734236]
[1750317054343,31.11838068,145.71,145.66,29.25734236]
[1750317054656,31.22878272,145.71,145.66,29.25734236]
[1750317054849,36.3471634,145.71,145.66,29.25734236]
[1750317055051,31.22878272,145.71,145.66,29.25734236]
[1750317055252,36.3471634,145.71,145.66,29.25734236]
[1750317055451,26.0,145.71,145.67,5.22878272]
[1750317055663,31.11838068,145.71,145.67,5.22878272]
[1750317055846,36.3471634,145.71,145.67,5.22878272]
[1750317056048,31.22878272,145.71,145.67,5.22878272]
[1750317056449,36.3471634,145.71,145.67,5.22878272]
[1750317056764,31.22878272,145.71,145.66,29.25734236]
[1750317056949,34.16839181,145.71,145.66,32.19695145]
[1750317057156,39.28677249,145.71,145.66,32.19695145]
[1750317057336,34.16839181,145.71,145.66,32.19695145]
[1750317057661,8.16839181,145.7,145.66,32.19695145]
[1750317061047,34.16839181,145.71,145.66,32.19695145]
[1750317061249,26.0,145.71,145.67,8.16839181]
[1750317061449,31.12522091,145.71,145.68,8.16839181]
[1750317061669,26.0,145.71,145.68,8.16839181]
[1750317061841,5.12522091,145.74,145.7,8.16839181]
[1750317062042,8.16839181,145.76,145.71,8.16839181]
[1750317062277,31.1244442,145.75,145.71,8.16839181]
[1750317062445,5.1244442,145.74,145.71,8.16839181]
[1750317062647,26.0,145.75,145.72,24.01866593]
[1750317062950,5.12498565,145.74,145.72,24.01866593]
[1750317063344,26.0,145.75,145.72,24.01866593]
[1750317064572,34.16839181,145.75,145.72,24.01866593]
[1750317064768,5.12585546,145.74,145.72,24.01866593]
[1750317064969,34.16839181,145.75,145.72,24.01866593]
[1750317065164,5.12592175,145.74,145.72,24.01866593]
[1750317065357,34.16839181,145.75,145.72,24.01866593]
[1750317065655,5.1261001,145.74,145.72,24.01866593]
[1750317065873,34.16839181,145.75,145.72,24.01866593]
[1750317066063,5.12602442,145.74,145.72,24.01866593]
[1750317066262,34.16839181,145.75,145.72,24.01866593]
[1750317066571,5.12641688,145.74,145.72,17.15618995]
[1750317066754,34.16839181,145.75,145.72,17.15618995]
[1750317066955,5.12594663,145.74,145.72,17.15618995]
[1750317067155,34.16839181,145.75,145.72,17.15618995]
[1750317067374,5.12597743,145.74,145.72,17.15618995]
[1750317067568,8.16839181,145.74,145.72,17.15618995]
[1750317067776,26.0,145.72,145.71,6.86294694]
[1750317068872,26.0,145.72,145.7,6.86341798]
[1750317069376,34.16839181,145.73,145.7,6.86341798]
[1750317070480,26.0,145.73,145.7,24.02196293]
[1750317071084,34.16839181,145.73,145.7,17.15854495]
[1750317071382,34.16839181,145.73,145.69,24.02361176]
[1750317071383,8.16839181,145.72,145.69,24.02361176]
[1750317073282,26.0,145.7,145.69,6.86388907]
[1750317075389,26.0,145.7,145.68,6.86436024]
[1750317076878,26.0,145.7,145.68,6.86436024]
[1750317080402,8.16839181,145.74,145.69,8.16839181]
[1750317080702,5.13211784,145.73,145.7,8.16839181]
[1750317080884,34.16839181,145.74,145.7,8.16839181]
[1750317081089,5.13211784,145.73,145.7,8.16839181]
[1750317081388,34.16839181,145.74,145.7,8.16839181]
[1750317081590,5.13186928,145.73,145.7,8.16839181]
[1750317081808,26.0,145.74,145.7,8.16839181]
[1750317082002,5.13186928,145.73,145.69,8.16839181]
[1750317082309,34.16839181,145.74,145.7,24.02196293]
[1750317082480,5.13177154,145.73,145.7,24.02196293]
[1750317082805,34.16839181,145.74,145.7,24.02196293]
[1750317083017,5.13172403,145.73,145.7,24.02196293]
[1750317083206,34.16839181,145.74,145.7,24.02196293]
[1750317083415,13.30011584,145.73,145.7,24.02196293]
[1750317083708,8.16839181,145.73,145.7,24.02196293]
[1750317084210,8.16839181,145.73,145.7,17.15854495]
[1750317084711,34.16839181,145.74,145.7,17.15854495]
[1750317084892,5.13124585,145.73,145.7,17.15854495]
[1750317085093,34.16839181,145.74,145.7,17.15854495]
[1750317085295,5.13124651,145.73,145.7,24.02196293]
[1750317085494,34.16839181,145.74,145.7,24.02196293]
[1750317085694,5.13103048,145.73,145.7,24.02196293]
[1750317085913,34.16839181,145.74,145.7,24.02196293]
[1750317086105,5.13103048,145.73,145.7,24.02196293]
[1750317086409,34.16839181,145.74,145.7,24.02196293]
[1750317086612,5.13103824,145.73,145.7,24.02196293]
[1750317086814,34.16839181,145.74,145.7,24.02196293]
[1750317087018,5.1308243,145.73,145.7,24.02196293]
[1750317087220,34.16839181,145.74,145.7,24.02196293]
[1750317087522,5.13082364,145.73,145.7,24.02196293]
[1750317087712,34.16839181,145.74,145.7,24.02196293]
[1750317087912,5.13062587,145.73,145.7,24.02196293]
[1750317088112,34.16839181,145.74,145.7,24.02196293]
[1750317088314,5.13062587,145.73,145.7,24.02196293]
[1750317088518,34.16839181,145.74,145.7,24.02196293]
[1750317088725,5.13052516,145.73,145.7,24.02196293]
[1750317089025,34.16839181,145.74,145.7,24.02196293]
[1750317090216,5.1302118,145.73,145.7,32.19035474]
[1750317090535,26.0,145.74,145.7,32.19035474]
[1750317090823,5.13051331,145.73,145.7,29.24717642]
[1750317091026,26.0,145.74,145.7,29.24717642]
[1750317091227,5.13051397,145.73,145.7,29.24717642]
[1750317091527,26.0,145.74,145.7,29.24717642]
[1750317092232,5.13064273,145.73,145.7,29.24717642]
[1750317092442,26.0,145.74,145.7,29.24717642]
[1750317095967,31.22521349,145.74,145.7,29.24717642]
[1750317096638,31.22521349,145.74,145.7,24.02196293]
[1750317096839,31.22521349,145.74,145.7,29.24717642]
[1750317098052,26.0,145.74,145.7,29.24717642]
[1750317099766,5.13485229,145.73,145.7,29.24717642]
[1750317100551,5.13485229,145.73,145.7,6.86341798]
[1750317100552,31.22521349,145.71,145.7,6.86341798]
[1750317101674,31.22521349,145.71,145.68,6.86436024]
[1750317101973,5.22521349,145.7,145.65,6.86577411]
[1750317102162,26.0,145.71,145.65,6.86577411]
[1750317102163,5.22521349,145.69,145.65,6.86577411]
[1750317102880,8.17050572,145.69,145.65,6.86577411]
[1750317105481,8.17050572,145.68,145.65,6.86577411]
[1750317108180,8.17050572,145.68,145.64,17.16476073]
[1750317109471,8.17050572,145.68,145.64,24.03100626]
[1750317110658,8.17050572,145.67,145.64,24.03100626]
[1750317111564,8.17050572,145.66,145.63,6.86671702]
[1750317115165,26.0,145.68,145.63,6.86671702]
[1750317115166,13.30038151,145.67,145.63,24.03350957]
[1750317115369,8.17050572,145.67,145.63,24.03350957]
[1750317116604,8.17050572,145.66,145.63,24.03350957]
[1750317120505,8.17050572,145.64,145.63,6.86671702]
[1750317122507,8.17050572,145.64,145.61,6.86766018]
[1750317122678,8.17050572,145.63,145.61,6.86766018]
[1750317122883,8.17050572,145.64,145.61,6.86766018]
[1750317124208,8.17050572,145.64,145.61,24.03681065]
[1750317125213,8.17050572,145.63,145.61,24.03681065]